fUST/lending_fUST_20241110
["ID","MTS","AMOUNT","RATE_DAILY","PERIOD"]
[341816814,1731238247353,-160.0,0.00029499,10]
[341816816,1731238247362,-517.67,0.000295,120]
[341816818,1731238247369,-694496.17190723,0.000295,5]
[341819054,1731238531552,168.373583,0.00013973,2]
[341819055,1731238531810,168.373583,0.00020447,2]
[341819062,1731239055394,520.83333333,0.00020844,2]
[341819065,1731239218589,159.945755,0.00013973,2]
[341819066,1731239218995,159.945755,0.00020447,2]
[341819092,1731239368698,520.83333333,0.00020844,2]
[341819117,1731239432987,-186.552,0.00021662,2]
[341819118,1731239432998,-493.8487098,0.00026244,2]
[341819119,1731239433008,-328.9418991,0.00026534,2]
[341819120,1731239433019,-520.83333333,0.00026534,2]
[341819121,1731239433029,-159.945755,0.00026921,2]
[341819122,1731239433039,-179.579471,0.00027077,2]
[341819123,1731239433049,-300.0,0.00027349,2]
[341819124,1731239433059,-300.0,0.00027349,2]
[341819125,1731239433069,-997.62974967,0.0002735,2]
[341819201,1731239439126,-520.83333333,0.00025396,2]
[341819203,1731239439136,-23902.37025033,0.0002735,2]
[341819205,1731239439146,-269.30465,0.00027423,2]
[341819207,1731239439156,-295.9874529,0.00028767,2]
[341819209,1731239439166,-169.3431688,0.00028822,30]
[341819211,1731239439176,-153.0,0.00028822,30]
[341819213,1731239439185,-153.0,0.00028822,30]
[341819215,1731239439200,-3715.25238889,0.00029096,2]
[341819217,1731239439209,-212.0390805,0.00029233,30]
[341819219,1731239439218,-253.01169245,0.0002928,2]
[341819221,1731239439227,-1448.91732123,0.0002938,15]
[341819223,1731239439238,-361.69700295,0.000294,2]
[341819225,1731239439247,-200.0,0.000294,3]
[341819227,1731239439257,-171.821,0.000294,22]
[341819229,1731239439266,-23200.92242805,0.000294,3]
[341819254,1731239440728,-2797.70669003,0.000294,3]
[341819255,1731239440740,-427.63664462,0.000294,3]
[341819299,1731239443888,-29128.7342373,0.000294,3]
[341819301,1731239443898,-1000.0,0.000294,2]
[341819303,1731239443907,-7344.88,0.00029459,10]
[341819305,1731239443917,-7199.22,0.00029479,10]
[341819307,1731239443927,-853.21,0.00029479,3]
[341819309,1731239443936,-6120.73,0.00029489,10]
[341819311,1731239443945,-500.0,0.00029499,2]
[341819313,1731239443955,-500.0,0.00029499,2]
[341819315,1731239443965,-481.11799619,0.00029499,2]
[341819317,1731239443974,-500.0,0.00029499,2]
[341819319,1731239443983,-500.0,0.00029499,2]
[341819321,1731239443992,-500.0,0.00029499,2]
[341819323,1731239444001,-500.0,0.00029499,2]
[341819325,1731239444010,-500.0,0.00029499,2]
[341819327,1731239444020,-500.0,0.00029499,2]
[341819329,1731239444029,-500.0,0.00029499,2]
[341819331,1731239444038,-500.0,0.00029499,2]
[341819333,1731239444048,-500.0,0.00029499,2]
[341819335,1731239444057,-500.0,0.00029499,2]
[341819336,1731239444066,-500.0,0.00029499,2]
[341819338,1731239444075,-500.0,0.00029499,2]
[341819341,1731239444085,-392.80282795,0.00029499,2]
[341819344,1731239444097,-107.19717205,0.00029499,2]
[341819346,1731239444106,-500.0,0.00029499,2]
[341819348,1731239444115,-500.0,0.00029499,2]
[341819350,1731239444124,-500.0,0.00029499,2]
[341819352,1731239444133,-500.0,0.00029499,2]
[341819354,1731239444142,-434.82398677,0.00029499,2]
[341819356,1731239444153,-65.17601323,0.00029499,2]
[341819358,1731239444163,-377.53426848,0.00029499,2]
[341819360,1731239444174,-122.46573152,0.00029499,2]
[341819362,1731239444183,-500.0,0.00029499,2]
[341819364,1731239444196,-500.0,0.00029499,2]
[341819366,1731239444206,-500.0,0.00029499,2]
[341819368,1731239444215,-500.0,0.00029499,2]
[341819370,1731239444225,-500.0,0.00029499,2]
[341819372,1731239444234,-500.0,0.00029499,2]
[341819374,1731239444244,-500.0,0.00029499,2]
[341819376,1731239444254,-500.0,0.00029499,2]
[341819378,1731239444263,-500.0,0.00029499,2]
[341819380,1731239444273,-500.0,0.00029499,2]
[341819382,1731239444283,-500.0,0.00029499,2]
[341819384,1731239444293,-500.0,0.00029499,2]
[341819385,1731239444302,-500.0,0.00029499,2]
[341819386,1731239444311,-500.0,0.00029499,2]
[341819387,1731239444321,-307.24572875,0.00029499,2]
[341819388,1731239444330,-500.0,0.00029499,2]
[341819389,1731239444339,-500.0,0.00029499,2]
[341819390,1731239444349,-500.0,0.00029499,2]
[341819391,1731239444359,-500.0,0.00029499,2]
[341819392,1731239444368,-500.0,0.00029499,2]
[341819393,1731239444378,-500.0,0.00029499,2]
[341819394,1731239444387,-500.0,0.00029499,2]
[341819395,1731239444396,-500.0,0.00029499,2]
[341819396,1731239444406,-500.0,0.00029499,2]
[341819397,1731239444415,-500.0,0.00029499,2]
[341819398,1731239444424,-500.0,0.00029499,2]
[341819399,1731239444433,-500.0,0.00029499,2]
[341819400,1731239444443,-500.0,0.00029499,2]
[341819401,1731239444453,-500.0,0.00029499,2]
[341819402,1731239444462,-500.0,0.00029499,2]
[341819403,1731239444471,-500.0,0.00029499,2]
[341819404,1731239444481,-500.0,0.00029499,2]
[341819405,1731239444490,-205.27889262,0.00029499,2]
[341819406,1731239444499,-500.0,0.00029499,2]
[341819407,1731239444508,-500.0,0.00029499,2]
[341819408,1731239444518,-500.0,0.00029499,2]
[341819409,1731239444527,-500.0,0.00029499,2]
[341819410,1731239444536,-500.0,0.00029499,2]
[341819411,1731239444545,-500.0,0.00029499,2]
[341819412,1731239444554,-500.0,0.00029499,2]
[341819413,1731239444565,-500.0,0.00029499,2]
[341819414,1731239444574,-500.0,0.00029499,2]
[341819415,1731239444583,-500.0,0.00029499,2]
[341819416,1731239444592,-500.0,0.00029499,2]
[341819417,1731239444601,-500.0,0.00029499,2]
[341819418,1731239444611,-500.0,0.00029499,2]
[341819419,1731239444620,-500.0,0.00029499,2]
[341819421,1731239444630,-500.0,0.00029499,2]
[341819423,1731239444639,-500.0,0.00029499,2]
[341819425,1731239444648,-500.0,0.00029499,2]
[341819427,1731239444657,-500.0,0.00029499,2]
[341819429,1731239444666,-500.0,0.00029499,2]
[341819431,1731239444677,-500.0,0.00029499,2]
[341819433,1731239444687,-500.0,0.00029499,2]
[341819435,1731239444696,-500.0,0.00029499,2]
[341819437,1731239444707,-500.0,0.00029499,2]
[341819439,1731239444717,-500.0,0.00029499,2]
[341819441,1731239444726,-551.24445755,0.00029499,2]
[341819443,1731239444735,-500.0,0.00029499,2]
[341819445,1731239444745,-23.46476791,0.00029499,2]
[341819448,1731239444762,-476.53523209,0.00029499,2]
[341819450,1731239444772,-500.0,0.00029499,2]
[341819452,1731239444781,-500.0,0.00029499,2]
[341819454,1731239444790,-938.24871121,0.00029499,2]
[341819456,1731239444800,-205.49929122,0.00029499,2]
[341819458,1731239444810,-500.0,0.00029499,2]
[341819460,1731239444820,-500.0,0.00029499,2]
[341819462,1731239444829,-500.0,0.00029499,2]
[341819464,1731239444839,-938.24871121,0.00029499,2]
[341819466,1731239444849,-500.0,0.00029499,2]
[341819468,1731239444864,-500.0,0.00029499,2]
[341819470,1731239444873,-334.67532527,0.00029499,2]
[341819472,1731239444883,-938.24871121,0.00029499,2]
[341819474,1731239444893,-500.0,0.00029499,2]
[341819477,1731239444902,-500.0,0.00029499,2]
[341819479,1731239444912,-500.0,0.00029499,2]
[341819481,1731239444922,-938.24871121,0.00029499,2]
[341819482,1731239444932,-300.0,0.00029499,2]
[341819484,1731239444941,-938.24871121,0.00029499,2]
[341819486,1731239444953,-650.0,0.00029499,2]
[341819489,1731239444964,-500.0,0.00029499,2]
[341819497,1731239445039,-253.19335423,0.00029499,2]
[341819499,1731239445049,-12190.04728864,0.00029499,2]
[341819501,1731239445059,-78.45186608,0.00029499,2]
[341819503,1731239445071,-521.54813392,0.00029499,2]
[341819505,1731239445081,-13762.38076535,0.000295,5]
[341819508,1731239445092,-11357.01919666,0.000295,5]
[341819510,1731239445104,-21969.90062663,0.000295,5]
[341819512,1731239445116,-9756.23864923,0.000295,5]
[341819514,1731239445127,-745.12510628,0.000295,5]
[341819516,1731239445138,-3159.79647042,0.000295,5]
[341819666,1731239446862,-6247.98920693,0.000295,5]
[341820314,1731239956676,159.945755,0.00013973,2]
[341820315,1731239997830,520.83333333,0.00020844,2]
[341820323,1731240310960,520.83333333,0.00020844,2]
[341820366,1731240623043,520.83333333,0.00020844,2]
[341820390,1731240631962,-174.025,0.00021306,2]
[341820391,1731240631971,-215.721,0.00021637,2]
[341820392,1731240631980,-159.945755,0.00021661,2]
[341820393,1731240631989,-390.0,0.00022371,2]
[341820394,1731240631999,-520.83333333,0.00023649,2]
[341820395,1731240632008,-390.0,0.00024608,4]
[341820396,1731240632018,-704.211072,0.00024978,2]
[341820397,1731240632028,-3000.0,0.00024986,2]
[341820398,1731240632039,-352.2643411,0.00025092,2]
[341820399,1731240632050,-193.003357,0.0002517,2]
[341820400,1731240632060,-262.237141,0.00025346,2]
[341820401,1731240632069,-704.211072,0.00025663,2]
[341820402,1731240632079,-300.0,0.00026125,2]
[341820403,1731240632089,-24900.0,0.00026126,2]
[341820404,1731240632099,-704.211072,0.00026348,2]
[341820405,1731240632109,-154.379,0.00027,5]
[341820406,1731240632122,-390.0,0.00027069,7]
[341820407,1731240632131,-192.68,0.00027593,17]
[341820408,1731240632141,-195.67433294,0.00027593,17]
[341820409,1731240632150,-154.375,0.0002764,14]
[341820410,1731240632159,-157.627264,0.0002774,2]
[341820411,1731240632169,-154.292,0.0002828,7]
[341820412,1731240632179,-154.33,0.0002843,2]
[341820413,1731240632189,-420.0,0.00028738,2]
[341820414,1731240632198,-286.28382998,0.00028767,2]
[341820415,1731240632207,-6055.09233097,0.00028836,2]
[341820416,1731240632217,-154.66,0.0002892,10]
[341820417,1731240632226,-6055.09233097,0.00029111,2]
[341820418,1731240632236,-500.0,0.000293,120]
[341820419,1731240632246,-500.0,0.000293,120]
[341820420,1731240632256,-500.0,0.000293,120]
[341820421,1731240632266,-500.0,0.000293,120]
[341820422,1731240632275,-500.0,0.000293,120]
[341820423,1731240632284,-500.0,0.000293,120]
[341820424,1731240632294,-500.0,0.000293,120]
[341820425,1731240632303,-635.91,0.000293,120]
[341820426,1731240632314,-500.0,0.000293,120]
[341820427,1731240632323,-159.945755,0.00029349,2]
[341820428,1731240632335,-6982.44860743,0.000294,2]
[341820429,1731240632344,-806.94232366,0.000294,2]
[341820430,1731240632353,-1000.0,0.000294,2]
[341820431,1731240632363,-14189.09032934,0.000294,3]
[341820432,1731240632374,-806.94232366,0.00029443,2]
[341820433,1731240632384,-500.0,0.00029473,5]
[341820434,1731240632393,-500.0,0.00029473,5]
[341820435,1731240632403,-500.0,0.00029473,5]
[341820436,1731240632412,-501.41784336,0.00029473,5]
[341820437,1731240632421,-239.26750131,0.00029473,5]
[341820438,1731240632430,-500.0,0.00029473,5]
[341820439,1731240632440,-506.15118949,0.00029473,5]
[341820440,1731240632449,-806.94232366,0.00029487,2]
[341820441,1731240632459,-5999.35,0.0002949,10]
[341820442,1731240632468,-4999.46,0.0002949,10]
[341820443,1731240632479,-500.0,0.00029498,2]
[341820444,1731240632488,-500.0,0.00029499,2]
[341820445,1731240632497,-500.0,0.00029499,2]
[341820446,1731240632507,-500.0,0.00029499,2]
[341820447,1731240632518,-500.0,0.00029499,2]
[341820448,1731240632528,-500.0,0.00029499,2]
[341820449,1731240632538,-500.0,0.00029499,2]
[341820450,1731240632548,-574.29492552,0.00029499,2]
[341820451,1731240632557,-500.00000001,0.00029499,2]
[341820452,1731240632567,-292.30204755,0.00029499,2]
[341820453,1731240632578,-500.0,0.00029499,2]
[341820454,1731240632587,-500.0,0.00029499,2]
[341820455,1731240632596,-500.0,0.00029499,2]
[341820456,1731240632608,-500.0,0.00029499,2]
[341820457,1731240632619,-500.0,0.00029499,2]
[341820458,1731240632628,-500.0,0.00029499,2]
[341820459,1731240632639,-419.79536084,0.00029499,2]
[341820460,1731240632648,-500.0,0.00029499,2]
[341820461,1731240632657,-500.0,0.00029499,2]
[341820462,1731240632667,-500.0,0.00029499,2]
[341820463,1731240632677,-500.0,0.00029499,2]
[341820464,1731240632687,-1120.48092043,0.00029499,2]
[341820465,1731240632696,-253.19335422,0.00029499,2]
[341820466,1731240632705,-608.02,0.00029499,2]
[341820467,1731240632714,-487.40833089,0.000295,2]
[341820468,1731240632724,-455.78710927,0.000295,2]
[341820469,1731240632733,-5059.16620146,0.000295,5]
[341820470,1731240632750,-321.16560733,0.000295,5]
[341820478,1731240637976,-1243.5047914,0.00028836,2]
[341820479,1731240637986,-1000.0,0.000294,2]
[341820480,1731240637996,-500.0,0.00029473,5]
[341820481,1731240638005,-28689.04912794,0.000295,5]
[341820482,1731240638031,-3130.84515926,0.000295,5]
[341820596,1731240642539,-757.7348819,0.00029352,8]
[341820597,1731240642549,-13740.0522267,0.000295,5]
[341820610,1731240643041,-19294.57020798,0.000295,5]
[341820611,1731240643050,-48740.85292251,0.000295,5]
[341820613,1731240643136,-17651.17294359,0.000295,5]
[341820614,1731240643148,-1966.05225204,0.000295,5]
[341821974,1731240757769,160.460973,0.00013973,2]
[341821981,1731240867533,6103.78664886,0.00031716,30]
[341821983,1731240996090,520.83333333,0.00020844,2]
[341821985,1731241306994,520.83333333,0.00020844,2]
[341821986,1731241533961,161.000971,0.00013973,2]
[341821988,1731241619139,520.83333333,0.00020844,2]
[341822060,1731241834360,-161.000971,0.00021661,2]
[341822061,1731241834370,-163.1475,0.00021927,2]
[341822062,1731241834379,-520.83333333,0.00022875,2]
[341822063,1731241834389,-420.214698,0.00025333,2]
[341822064,1731241834398,-352.2643411,0.000254,2]
[341822065,1731241834407,-493.8487098,0.00025639,2]
[341822066,1731241834417,-243.8239453,0.00025681,2]
[341822067,1731241834427,-1393.2255805,0.00025921,2]
[341822068,1731241834436,-179.579471,0.00026349,2]
[341822069,1731241834446,-660.0,0.00026384,2]
[341822070,1731241834455,-180.02125545,0.00026434,2]
[341822071,1731241834465,-1188.9971945,0.00026484,2]
[341822072,1731241834474,-221.2801879,0.00026534,2]
[341822073,1731241834484,-300.0,0.00026848,2]
[341822074,1731241834495,-300.0,0.00028313,2]
[341822075,1731241834504,-2087.83095782,0.00028314,2]
[341822076,1731241834515,-695.1193,0.00028314,2]
[341822077,1731241834527,-2384.91,0.00028314,2]
[341822114,1731241838255,-8926.22355312,0.00028314,2]
[341822499,1731241842123,-300.85190002,0.00028314,2]
[341822501,1731241842134,-10505.06428904,0.00028314,2]
[341822503,1731241842143,-276.89832967,0.00028767,2]
[341822505,1731241842152,-153.0,0.00028849,30]
[341822507,1731241842162,-153.0,0.00028849,30]
[341822509,1731241842171,-153.0,0.00028849,30]
[341822511,1731241842181,-153.0,0.00028849,30]
[341822513,1731241842190,-829.00319426,0.00028904,2]
[341822515,1731241842199,-7652.03418703,0.00028904,30]
[341822569,1731241843001,-273.14789255,0.00028904,30]
[341822574,1731241843061,-3419.75830989,0.00028904,30]
[341822905,1731241846089,-1064.61524037,0.00028904,30]
[341822907,1731241846101,-8644.7045971,0.00028904,30]
[341824107,1731241902881,-520.83333333,0.00025921,2]
[341824108,1731241902904,-300.0,0.00028903,2]
[341824109,1731241902925,-300.0,0.00028903,2]
[341824110,1731241902946,-18945.73977307,0.00028904,30]
[341824111,1731241902966,-4933.4268936,0.00028937,2]
[341824112,1731242102757,9703.0,0.00020844,2]
[341824113,1731242106110,215.721,0.00020665,2]
[341824114,1731242107209,171.30525,0.00020665,2]
[341824117,1731242238540,160.876828,0.00013973,2]
[341824130,1731242551849,520.83333333,0.00020844,2]
[341824132,1731242561027,800.0,0.00020844,2]
[341824232,1731242810567,10000.0,0.00025,120]
[341824233,1731242818555,10000.0,0.00027,60]
[341824238,1731242863979,520.83333333,0.00020844,2]
[341824245,1731242962252,160.876828,0.00013973,2]
[341824489,1731243034540,-160.876828,0.00022174,2]
[341824490,1731243034552,-520.83333333,0.00024142,2]
[341824491,1731243034561,-168.080497,0.00024803,2]
[341824492,1731243034570,-3000.0,0.00025117,2]
[341824493,1731243034580,-704.211072,0.00025468,2]
[341824494,1731243034589,-704.211072,0.00026153,2]
[341824495,1731243034599,-540.06376636,0.00026341,2]
[341824496,1731243034609,-300.0,0.00026417,2]
[341824497,1731243034618,-17939.824376,0.00026418,2]
[341824656,1731243038329,-1319.271922,0.00026418,2]
[341824657,1731243038444,-5640.903702,0.00026418,2]
[341824658,1731243038454,-315.1790048,0.00026441,2]
[341824659,1731243038463,-704.211072,0.00026838,2]
[341824660,1731243038472,-175.31531,0.00027796,2]
[341824661,1731243038481,-154.322,0.0002795,30]
[341824662,1731243038493,-187.72,0.0002798,2]
[341824663,1731243038502,-192.68,0.00027989,18]
[341824664,1731243038511,-195.67433294,0.00027989,18]
[341824665,1731243038520,-210.107349,0.00028314,2]
[341824666,1731243038529,-154.288,0.0002859,3]
[341824667,1731243038538,-706.70856913,0.00028762,2]
[341824668,1731243038550,-7176.75776834,0.00028762,2]
[341824669,1731243038558,-500.0,0.00028767,2]
[341824671,1731243038567,-507.95479792,0.00028767,2]
[341824673,1731243038576,-277.20602297,0.00028767,2]
[341824675,1731243038586,-281.28223099,0.00028999,2]
[341824676,1731243038595,-1000.0,0.00029,29]
[341824677,1731243038604,-16000.0,0.00029,2]
[341824678,1731243038613,-1000.0,0.00029,10]
[341824679,1731243038622,-420.0,0.00029058,2]
[341824680,1731243038631,-154.327,0.0002906,2]
[341824681,1731243038640,-154.38,0.0002923,5]
[341824682,1731243038649,-308.8627427,0.00029233,30]
[341824683,1731243038658,-151.8524844,0.00029233,30]
[341824684,1731243038670,-386.1768015,0.00029233,30]
[341824685,1731243038680,-303.7049688,0.00029233,30]
[341824686,1731243038689,-303.7049688,0.00029233,30]
[341824687,1731243038698,-161.492077,0.00029322,2]
[341824688,1731243038708,-186.654137,0.00029322,2]
[341824689,1731243038785,-162.956538,0.00029322,2]
[341824690,1731243038796,-214.797342,0.00029322,2]
[341824691,1731243038806,-197.811844,0.00029322,2]
[341824692,1731243038816,-170.156892,0.00029322,2]
[341824693,1731243038825,-217.28869,0.00029322,2]
[341824694,1731243038835,-200.0,0.0002934,22]
[341824695,1731243038844,-1000.0,0.00029399,2]
[341824696,1731243038854,-2922.1310795,0.00029399,2]
[341824697,1731243038863,-6982.44860743,0.000294,2]
[341824698,1731243038872,-9255.65950222,0.000294,3]
[341824699,1731243038881,-2922.13107949,0.00029425,2]
[341824700,1731243038891,-703.64,0.00029443,3]
[341824701,1731243038901,-6058.17,0.00029443,10]
[341824702,1731243038911,-2922.13107949,0.0002945,2]
[341824703,1731243038920,-234.53,0.00029453,3]
[341824704,1731243038930,-8723.77,0.00029453,10]
[341824705,1731243038939,-7269.81,0.00029453,10]
[341824706,1731243038948,-469.06,0.00029463,3]
[341824707,1731243038958,-10468.52,0.00029463,10]
[341824708,1731243038967,-750.48261878,0.00029472,2]
[341824709,1731243038975,-627.34413981,0.00029472,2]
[341824710,1731243038985,-506.15118949,0.00029473,5]
[341824711,1731243038995,-500.0,0.00029473,5]
[341824712,1731243039004,-256.52329473,0.00029473,5]
[341824713,1731243039014,-500.0,0.00029473,5]
[341824714,1731243039024,-505.62246059,0.00029473,5]
[341824715,1731243039033,-500.0,0.00029473,5]
[341824716,1731243039043,-502.41547178,0.00029473,5]
[341824717,1731243039055,-500.0,0.00029473,5]
[341824718,1731243039064,-501.35716138,0.00029473,5]
[341824719,1731243039072,-500.0,0.00029473,5]
[341824720,1731243039083,-500.0,0.00029473,5]
[341824721,1731243039094,-500.46639605,0.00029473,5]
[341824722,1731243039103,-554.70390979,0.00029473,5]
[341824723,1731243039112,-500.0,0.00029473,5]
[341824724,1731243039121,-500.0,0.00029473,5]
[341824725,1731243039130,-437.72467704,0.00029473,5]
[341824726,1731243039139,-500.0,0.00029473,2]
[341824727,1731243039148,-321.25939195,0.00029473,5]
[341824728,1731243039158,-500.0,0.00029473,5]
[341824729,1731243039167,-497.13631756,0.00029473,5]
[341824730,1731243039176,-500.61827013,0.00029473,5]
[341824731,1731243039185,-501.41784336,0.00029473,5]
[341824732,1731243039195,-500.0,0.00029473,5]
[341824733,1731243039204,-500.0,0.00029473,5]
[341824734,1731243039213,-500.0,0.00029473,2]
[341824735,1731243039223,-500.0,0.00029473,5]
[341824736,1731243039232,-507.47644622,0.00029473,5]
[341824737,1731243039241,-500.0,0.00029473,5]
[341824738,1731243039250,-1504.508038,0.00029473,7]
[341824739,1731243039259,-1191.517808,0.00029473,7]
[341824740,1731243039268,-1504.508038,0.00029473,7]
[341824741,1731243039278,-1191.517808,0.00029473,7]
[341824742,1731243039287,-151.0,0.00029473,7]
[341824743,1731243039298,-2323.190952,0.00029473,7]
[341824744,1731243039307,-2323.190952,0.00029473,7]
[341824745,1731243039316,-218.983821,0.00029473,7]
[341824746,1731243039326,-218.983821,0.00029473,7]
[341824747,1731243039336,-151.0,0.00029473,7]
[341824748,1731243039345,-293.194669,0.00029473,7]
[341824749,1731243039355,-293.194669,0.00029473,7]
[341824750,1731243039365,-151.0,0.00029473,7]
[341824751,1731243039375,-151.768393,0.00029473,7]
[341824752,1731243039385,-151.0,0.00029473,3]
[341824753,1731243039395,-151.0,0.00029473,7]
[341824754,1731243039404,-2366.305193,0.00029473,7]
[341824755,1731243039420,-151.0,0.00029473,7]
[341824756,1731243039429,-2366.305193,0.00029473,7]
[341824757,1731243039439,-151.0,0.00029473,7]
[341824758,1731243039448,-669.422275,0.00029473,7]
[341824759,1731243039459,-151.0,0.00029473,7]
[341824760,1731243039469,-669.422275,0.00029473,7]
[341824761,1731243039478,-151.0,0.00029473,7]
[341824762,1731243039488,-2922.13107949,0.00029476,2]
[341824763,1731243039498,-329.349078,0.00029498,7]
[341824765,1731243039508,-329.349078,0.00029498,7]
[341824767,1731243039517,-151.0,0.00029498,7]
[341824768,1731243039526,-151.0,0.00029498,7]
[341824769,1731243039536,-500.0,0.00029498,2]
[341824770,1731243039547,-500.0,0.00029498,2]
[341824771,1731243039556,-500.0,0.00029498,2]
[341824772,1731243039565,-500.0,0.00029498,2]
[341824773,1731243039576,-500.0,0.00029498,2]
[341824774,1731243039586,-280.45672927,0.00029498,2]
[341824775,1731243039595,-500.0,0.00029498,2]
[341824776,1731243039605,-500.0,0.00029498,2]
[341824777,1731243039615,-484.29173092,0.00029498,2]
[341824779,1731243039634,-500.0,0.00029498,2]
[341824780,1731243039644,-500.0,0.00029498,2]
[341824782,1731243039653,-500.0,0.00029498,2]
[341824783,1731243039662,-500.0,0.00029498,2]
[341824786,1731243039672,-613.07184279,0.00029498,2]
[341824789,1731243039681,-500.0,0.00029498,2]
[341824791,1731243039690,-500.0,0.00029498,2]
[341824793,1731243039700,-500.0,0.00029498,2]
[341824795,1731243039710,-500.0,0.00029498,2]
[341824796,1731243039719,-500.0,0.00029498,2]
[341824797,1731243039729,-500.0,0.00029498,2]
[341824799,1731243039738,-500.0,0.00029498,2]
[341824800,1731243039748,-500.0,0.00029498,2]
[341824802,1731243039758,-500.0,0.00029498,2]
[341824809,1731243039826,-500.0,0.00029498,2]
[341824811,1731243039836,-500.0,0.00029498,2]
[341824813,1731243039845,-500.0,0.00029498,2]
[341824815,1731243039854,-500.0,0.00029498,2]
[341824817,1731243039863,-500.0,0.00029498,2]
[341824819,1731243039873,-619.60337322,0.00029498,2]
[341824821,1731243039882,-500.0,0.00029498,2]
[341824823,1731243039891,-500.0,0.00029498,2]
[341824825,1731243039900,-500.0,0.00029498,2]
[341824827,1731243039910,-500.0,0.00029498,2]
[341824829,1731243039919,-500.0,0.00029498,2]
[341824831,1731243039928,-500.0,0.00029498,2]
[341824833,1731243039937,-498.66782906,0.00029498,2]
[341824835,1731243039946,-500.0,0.00029498,2]
[341824837,1731243039956,-500.0,0.00029498,2]
[341824839,1731243039965,-281.93082083,0.00029498,2]
[341824841,1731243039974,-500.0,0.00029498,2]
[341824843,1731243039983,-500.0,0.00029498,2]
[341824845,1731243039993,-500.0,0.00029498,2]
[341824847,1731243040002,-500.0,0.00029498,2]
[341824849,1731243040011,-500.0,0.00029498,2]
[341824851,1731243040020,-500.0,0.00029498,2]
[341824853,1731243040029,-500.0,0.00029498,2]
[341824855,1731243040039,-500.0,0.00029498,2]
[341824857,1731243040051,-500.0,0.00029498,2]
[341824859,1731243040060,-500.0,0.00029498,2]
[341824861,1731243040070,-500.0,0.00029498,2]
[341824863,1731243040079,-500.0,0.00029498,2]
[341824865,1731243040089,-500.0,0.00029498,2]
[341824867,1731243040099,-500.0,0.00029498,2]
[341824869,1731243040108,-500.0,0.00029498,2]
[341824871,1731243040117,-500.0,0.00029498,2]
[341824873,1731243040127,-500.0,0.00029498,2]
[341824875,1731243040136,-500.0,0.00029498,2]
[341824877,1731243040145,-500.0,0.00029498,2]
[341824879,1731243040154,-500.0,0.00029498,2]
[341824881,1731243040164,-500.0,0.00029498,2]
[341824883,1731243040173,-500.0,0.00029498,2]
[341824885,1731243040182,-500.0,0.00029498,2]
[341824887,1731243040191,-500.0,0.00029498,2]
[341824889,1731243040201,-500.0,0.00029498,2]
[341824891,1731243040210,-500.0,0.00029498,2]
[341824893,1731243040219,-500.0,0.00029498,2]
[341824895,1731243040228,-500.0,0.00029498,2]
[341824897,1731243040238,-500.0,0.00029498,2]
[341824899,1731243040247,-500.0,0.00029498,2]
[341824901,1731243040255,-500.0,0.00029498,2]
[341824903,1731243040264,-500.0,0.00029498,2]
[341824905,1731243040273,-500.0,0.00029498,2]
[341824906,1731243040282,-500.0,0.00029498,2]
[341824909,1731243040292,-500.0,0.00029498,2]
[341824910,1731243040303,-500.0,0.00029498,2]
[341824913,1731243040313,-500.0,0.00029498,2]